[Event "1st Bangalore GM-Open-A 2024"]
[Site "Bangalore"]
[Date "2024.01.24"]
[Round "8.12"]
[White "Sankalp Gupta"]
[Black "Tologon tegin, Semetei"]
[Result "1-0"]
[ECO "B82"]
[WhiteElo "2535"]
[BlackElo "2384"]
[Annotator "RC"]
[PlyCount "179"]
[EventDate "2024.01.20"]
[EventType "swiss"]
[EventCountry "IND"]
[SourceTitle "playchess.com"]
[Source "ChessBase"]
[SourceQuality "1"]
[TimeControl "5400+30"]

1. e4 {[%emt 0:00:04]} c5 {[%emt 0:00:05]} 2. Nf3 {[%emt 0:00:09]} e6 {[%emt 0:00:04]} 3. d4 {[%emt 0:00:26]} cxd4 {[%emt 0:00:03]} 4. Nxd4 {[%emt 0:00:10]} Nc6 {[%emt 0:00:02]} 5. Nc3 {[%emt 0:00:10]} Qc7 {[%emt 0:00:15]} 6. Be3 {[%emt 0:00:19]} a6 {[%emt 0:00:04]} 7. a3 {[%emt 0:00:09]} Nf6 {[%emt 0:00:26]} 8. f4 {[%emt 0:00:49]} d6 {[%emt 0:00:11]} 9. Qf3 {[%emt 0:00:48]} Bd7 {[%emt 0:00:18]} 10. O-O-O {[%emt 0:01:28]} h5 {[%emt 0:00:09]} 11. h3 {[%emt 0:06:15]} Rc8 {[%emt 0:03:35]} 12. Bd3 {[%emt 0:04:55]} h4 {[%emt 0:00:50]} 13. Nxc6 {[%emt 0:06:54]} Bxc6 {[%emt 0:04:03]} 14. f5 {[%emt 0:01:26]} e5 {[%emt 0:01:01]} 15. Rhg1 {[%emt 0:06:39]} b5 {[%emt 0:01:20]} 16. Nd5 {[%emt 0:06:01]} Bxd5 {[%emt 0:14:24]} 17. exd5 {[%emt 0:03:14]} Qb7 {[%emt 0:03:42]} 18. Kb1 {[%emt 0:06:25]} Be7 {[%emt 0:02:49]} 19. g4 {[%emt 0:07:30]} hxg3 {[%emt 0:00:06]} 20. Qxg3 {[%emt 0:07:00]} Qxd5 {[%emt 0:16:46]} 21. Qxg7 {[%emt 0:00:27]} Rh6 {[%emt 0:00:19]} 22. h4 Rxh4 {[%emt 0:00:30]} 23. Bg5 {[%emt 0:12:24]} Rh7 {[%emt 0:09:34]} 24. Bxf6 {[%emt 0:02:17]} Rxg7 {[%emt 0:00:06]} 25. Bxg7 {[%emt 0:00:04]} f6 {[%emt 0:05:52]} 26. Bh6 {[%emt 0:00:01]} Kd7 {[%emt 0:12:25]} 27. Rge1 {[%emt 0:00:45]} Qg2 {[%emt 0:11:48]} 28. Bc1 {[%emt 0:00:38]} Qg4 {[%emt 0:11:27]} 29. Rg1 {[%emt 0:00:45]} Qf3 {[%emt 0:00:03]} 30. Rgf1 {[%emt 0:00:04]} Qc6 {[%emt 0:01:22]} 31. Rfe1 {[%emt 0:00:08]} Rh8 {[%emt 0:00:55]} 32. Be4 {[%emt 0:00:08]} Qc4 {[%emt 0:00:47]} 33. b3 {[%emt 0:00:13]} Qc5 {[%emt 0:00:21]} 34. Kb2 {[%emt 0:00:39]} Rh3 {[%emt 0:00:13]} 35. Rg1 {[%emt 0:03:43]} Rh4 {[%emt 0:00:55]} 36. Bd5 {[%emt 0:02:04]} Rh2 {[%emt 0:00:04]} 37. Be4 {[%emt 0:00:03]} Qf2 {[%emt 0:00:47]} 38. Rg8 {[%emt 0:01:24]} Qe2 {[%emt 0:00:16]} 39. Rd2 {[%emt 0:00:01]} Qh5 {[%emt 0:00:49]} 40. Rxh2 {[%emt 0:00:37]} Qxh2 {[%emt 0:00:03]} 41. Bd5 {[%emt 0:00:01]} e4 {[%emt 0:01:35]} 42. Be6+ {[%emt 0:00:04]} Kc6 {[%emt 0:00:14]} 43. Rc8+ {[%emt 0:00:13]} Kb7 {[%emt 0:00:04]} 44. Re8 {[%emt 0:00:03]} Qe5+ {[%emt 0:01:06]} 45. Kb1 {[%emt 0:12:10]} e3 {[%emt 0:00:03]} 46. Rxe7+ {[%emt 0:00:04]} Kb6 {[%emt 0:00:02]} 47. Bxe3+ {[%emt 0:00:27]} Qxe3 {[%emt 0:00:05]} 48. Re8 {[%emt 0:00:21]} Qe1+ {[%emt 0:00:11]} 49. Ka2 {[%emt 0:00:19]} Kc5 {[%emt 0:00:23]} 50. Rc8+ {[%emt 0:00:21]} Kd4 {[%emt 0:00:23]} 51. Rc6 {[%emt 0:00:06]} Qe5 {[%emt 0:00:12]} 52. Rxa6 {[%emt 0:07:44]} Kc3 {[%emt 0:00:00]} 53. Rc6+ {[%emt 0:00:08]} Kd2 {[%emt 0:00:01]} 54. Kb1 {[%emt 0:00:09]} Qe1+ {[%emt 0:00:24]} 55. Kb2 {[%emt 0:01:29]} Qe5+ {[%emt 0:00:08]} 56. Kb1 {[%emt 0:00:01]} d5 {[%emt 0:00:16]} 57. b4 {[%emt 0:01:22]} d4 {[%emt 0:00:59]} 58. Rc5 {[%emt 0:00:06]} Qe1+ {[%emt 0:02:36]} 59. Kb2 {[%emt 0:00:01]} Qc1+ {[%emt 0:00:07]} 60. Ka2 {[%emt 0:00:01]} Qe1 {[%emt 0:02:06]} 61. Bd7 {[%emt 0:00:48]} d3 {[%emt 0:00:39]} 62. cxd3 {[%emt 0:00:02]} Kxd3 {[%emt 0:00:24]} 63. Bxb5+ {[%emt 0:00:04]} Kd4 {[%emt 0:00:04]} 64. Ba4 {[%emt 0:02:40]} Kd3 {[%emt 0:00:55]} 65. Bc2+ {[%emt 0:00:27]} Kd2 {[%emt 0:00:01]} 66. Bb3 {[%emt 0:00:19]} Kd3 {[%emt 0:00:45]} 67. Kb2 {[%emt 0:02:30]} Kd4 {[%emt 0:00:50]} 68. a4 {[%emt 0:01:13]} Qd2+ {[%emt 0:00:11]} 69. Ka3 {[%emt 0:00:20]} Qe1 {[%emt 0:00:13]} 70. a5 {[%emt 0:00:31]} Qa1+ {[%emt 0:00:04]} 71. Ba2 {[%emt 0:00:01]} Qf1 {[%emt 0:00:20]} 72. Ka4 {[%emt 0:00:19]} Qa1 {[%emt 0:00:34]} 73. Ka3 {[%emt 0:00:17]} Qf1 {[%emt 0:00:04]} 74. Rc4+ {[%emt 0:01:04]} Ke5 {[%emt 0:00:28]} 75. a6 {[%emt 0:00:30]} Qd3+ {[%emt 0:00:27]} 76. Bb3 {[%emt 0:00:41]} Qd7 {[%emt 0:01:26]} 77. Rc5+ {[%emt 0:00:04]} Kd4 {[%emt 0:00:03]} 78. Rd5+ {[%emt 0:00:03]} Kc3 {[%emt 0:00:03]} 79. Rc5+ {[%emt 0:01:14]} Kd4 {[%emt 0:00:01]} 80. Be6 {[%emt 0:00:08]} Qe7 {[%emt 0:00:34]} 81. Kb3 {[%emt 0:00:17]} Qa7 {[%emt 0:00:17]} 82. Rc6 {[%emt 0:00:13]} Ke5 {[%emt 0:00:34]} 83. Ka4 {[%emt 0:00:17]} Qa8 {[%emt 0:01:17]} 84. Kb5 {[%emt 0:01:15]} Qa7 {[%emt 0:01:07]} 85. Rb6 {[%emt 0:00:42]} Qh7 {[%emt 0:00:22]} 86. Rb7 {[%emt 0:00:07]} Qh1 {[%emt 0:00:03]} 87. Rd7 {[%emt 0:00:20]} Qf1+ {[%emt 0:00:30]} 88. Bc4 {[%emt 0:00:06]} Qh1 {[%emt 0:01:54]} 89. a7 {[%emt 0:00:09]} Qf3 {[%emt 0:00:30]} 90. Rd5+ {[%emt 0:00:10]} 1-0

[Event "1st Bangalore GM-Open-A 2024"]
[Site "Bangalore"]
[Date "2024.01.24"]
[Round "8.13"]
[White "Lalit Babu M R"]
[Black "Ayush Sharma"]
[Result "1/2-1/2"]
[ECO "E15"]
[WhiteElo "2525"]
[BlackElo "2378"]
[Annotator "RC"]
[PlyCount "108"]
[EventDate "2024.01.20"]
[EventType "swiss"]
[EventCountry "IND"]
[SourceTitle "playchess.com"]
[Source "ChessBase"]
[SourceQuality "1"]
[TimeControl "5400+30"]

1. d4 {[%emt 0:00:04]} Nf6 {[%emt 0:00:14]} 2. c4 {[%emt 0:00:08]} e6 {[%emt 0:00:05]} 3. Nf3 {[%emt 0:00:07]} b6 {[%emt 0:00:04]} 4. g3 {[%emt 0:00:07]} Ba6 {[%emt 0:00:04]} 5. Qc2 {[%emt 0:00:53]} c5 {[%emt 0:00:47]} 6. d5 {[%emt 0:00:00]} exd5 {[%emt 0:00:04]} 7. cxd5 {[%emt 0:00:00]} Bb7 {[%emt 0:00:19]} 8. Bg2 {[%emt 0:00:00]} Nxd5 {[%emt 0:01:14]} 9. O-O {[%emt 0:00:00]} Be7 {[%emt 0:00:09]} 10. Rd1 {[%emt 0:00:00]} Nc6 {[%emt 0:00:33]} 11. Qf5 {[%emt 0:00:00]} Nf6 {[%emt 0:01:58]} 12. e4 {[%emt 0:00:00]} g6 {[%emt 0:07:23]} 13. Qf4 {[%emt 0:00:02]} O-O {[%emt 0:00:50]} 14. e5 {[%emt 0:00:05]} Nh5 {[%emt 0:01:14]} 15. Qc4 {[%emt 0:00:05]} d5 {[%emt 0:12:27]} 16. exd6 {[%emt 0:00:21]} Bxd6 {[%emt 0:03:01]} 17. Nc3 {[%emt 0:00:10]} Na5 {[%emt 0:09:23]} 18. Qd3 {[%emt 0:00:55]} Bc7 {[%emt 0:03:16]} 19. Qc2 {[%emt 0:01:16]} Qc8 {[%emt 0:09:23]} 20. Bh6 {[%emt 0:29:33]} Rd8 {[%emt 0:05:03]} 21. b4 {[%emt 0:27:06]} cxb4 {[%emt 0:06:02]} 22. Nb5 {[%emt 0:00:11]} Rxd1+ {[%emt 0:05:41]} 23. Rxd1 {[%emt 0:01:56]} Bd8 {[%emt 0:00:17]} 24. Qc5 {[%emt 0:06:08]} Qc7 25. Qxc7 {[%emt 0:00:31]} Rc8 {[%emt 0:00:32]} 26. Nd6 Rxc7 {[%emt 0:06:33]} 27. Nxb7 {[%emt 0:18:50]} Nxb7 {[%emt 0:00:02]} 28. Nd4 {[%emt 0:00:05]} Nc5 {[%emt 0:04:57]} 29. Bh3 {[%emt 0:10:21]} f5 {[%emt 0:08:22]} 30. Nxf5 {[%emt 0:00:27]} Bf6 {[%emt 0:00:01]} 31. Ne3 {[%emt 0:01:32]} Bg7 {[%emt 0:01:31]} 32. Rd8+ {[%emt 0:00:31]} Kf7 {[%emt 0:00:01]} 33. Nd5 {[%emt 0:00:19]} Rb7 {[%emt 0:03:10]} 34. Be3 {[%emt 0:00:06]} Nf6 {[%emt 0:04:10]} 35. Nxb4 {[%emt 0:00:10]} Bf8 {[%emt 0:02:56]} 36. Nc6 {[%emt 0:02:24]} Rc7 {[%emt 0:00:38]} 37. Bg2 {[%emt 0:00:36]} Nce4 {[%emt 0:02:06]} 38. Nd4 {[%emt 0:00:39]} Bc5 {[%emt 0:00:24]} 39. Bh3 {[%emt 0:00:59]} Ke7 {[%emt 0:01:08]} 40. Rh8 {[%emt 0:01:27]} Bxd4 {[%emt 0:01:25]} 41. Bxd4 {[%emt 0:00:04]} Ng5 {[%emt 0:00:09]} 42. Kg2 {[%emt 0:00:53]} Rc4 {[%emt 0:01:09]} 43. Bxf6+ {[%emt 0:01:37]} Kxf6 {[%emt 0:00:01]} 44. Bd7 {[%emt 0:00:07]} Rc2 {[%emt 0:01:17]} 45. a4 {[%emt 0:00:06]} Ne4 {[%emt 0:00:59]} 46. Kf3 {[%emt 0:00:04]} Nxf2 {[%emt 0:00:38]} 47. Rxh7 {[%emt 0:00:04]} Nd1 {[%emt 0:01:03]} 48. Be8 {[%emt 0:00:12]} Rf2+ {[%emt 0:00:11]} 49. Kg4 {[%emt 0:00:04]} Ne3+ {[%emt 0:00:38]} 50. Kh3 {[%emt 0:00:03]} Kg5 {[%emt 0:00:06]} 51. Rh4 {[%emt 0:00:53]} Nf1 {[%emt 0:00:46]} 52. Rg4+ {[%emt 0:00:31]} Kh5 {[%emt 0:00:16]} 53. Rh4+ {[%emt 0:00:21]} Kg5 {[%emt 0:00:01]} 54. Rg4+ {[%emt 0:00:18]} Kh5 {[%emt 0:00:48]} 1/2-1/2

[Event "1st Bangalore GM-Open-A 2024"]
[Site "Bangalore"]
[Date "2024.01.24"]
[Round "8.14"]
[White "Fawzy, Adham"]
[Black "Kushagra Mohan"]
[Result "0-1"]
[ECO "A20"]
[WhiteElo "2522"]
[BlackElo "2374"]
[Annotator "RC"]
[PlyCount "84"]
[EventDate "2024.01.20"]
[EventType "swiss"]
[EventCountry "IND"]
[SourceTitle "playchess.com"]
[Source "ChessBase"]
[SourceQuality "1"]
[TimeControl "5400+30"]

1. c4 {[%emt 0:00:16]} e5 {[%emt 0:00:05]} 2. g3 {[%emt 0:00:55]} Nf6 {[%emt 0:00:24]} 3. Bg2 {[%emt 0:00:23]} c6 {[%emt 0:00:04]} 4. Nf3 {[%emt 0:02:34]} e4 {[%emt 0:00:16]} 5. Nd4 {[%emt 0:00:56]} d5 {[%emt 0:00:06]} 6. cxd5 {[%emt 0:03:35]} Qxd5 {[%emt 0:02:34]} 7. e3 {[%emt 0:11:35]} Bc5 {[%emt 0:00:41]} 8. d3 {[%emt 0:08:28]} Qe5 {[%emt 0:01:36]} 9. dxe4 {[%emt 0:06:41]} Nxe4 {[%emt 0:00:43]} 10. O-O {[%emt 0:03:33]} O-O {[%emt 0:01:20]} 11. Nc3 {[%emt 0:08:40]} Nxc3 {[%emt 0:06:03]} 12. bxc3 {[%emt 0:00:17]} Nd7 {[%emt 0:01:38]} 13. e4 {[%emt 0:02:06]} Nf6 {[%emt 0:02:46]} 14. Bf4 {[%emt 0:03:49]} Qe7 {[%emt 0:00:10]} 15. Qb3 {[%emt 0:03:10]} Rd8 {[%emt 0:04:53]} 16. Qc4 {[%emt 0:06:39]} Bd7 {[%emt 0:16:01]} 17. Rfe1 {[%emt 0:02:27]} b5 {[%emt 0:13:31]} 18. Qb3 {[%emt 0:04:30]} Rac8 {[%emt 0:02:16]} 19. Rad1 {[%emt 0:04:51]} a5 {[%emt 0:02:51]} 20. h4 {[%emt 0:08:08]} h6 {[%emt 0:01:37]} 21. e5 {[%emt 0:06:30]} a4 {[%emt 0:03:56]} 22. Qc2 {[%emt 0:01:08]} Nd5 {[%emt 0:00:34]} 23. Bc1 {[%emt 0:01:20]} Bb6 {[%emt 0:11:02]} 24. e6 {[%emt 0:02:46]} fxe6 {[%emt 0:01:21]} 25. Bb2 {[%emt 0:04:28]} Rf8 {[%emt 0:01:35]} 26. c4 {[%emt 0:01:57]} Nb4 {[%emt 0:02:38]} 27. Qg6 {[%emt 0:01:15]} Rf6 {[%emt 0:03:47]} 28. Nf5 {[%emt 0:00:36]} Bxf2+ {[%emt 0:01:48]} 29. Kh2 {[%emt 0:00:39]} Rxf5 {[%emt 0:03:32]} 30. Qxf5 {[%emt 0:00:13]} Bxe1 {[%emt 0:00:50]} 31. Rxe1 {[%emt 0:00:49]} Rf8 {[%emt 0:00:49]} 32. Qg6 {[%emt 0:00:24]} Qf7 {[%emt 0:02:33]} 33. Qb1 {[%emt 0:00:24]} Qf5 {[%emt 0:02:23]} 34. Qd1 {[%emt 0:00:34]} Qd3 {[%emt 0:00:52]} 35. Qg4 {[%emt 0:00:38]} e5 {[%emt 0:00:51]} 36. Qh5 {[%emt 0:00:41]} Rf5 {[%emt 0:00:20]} 37. Qd1 {[%emt 0:00:23]} Rf2 {[%emt 0:04:04]} 38. Bxe5 {[%emt 0:00:25]} Bf5 {[%emt 0:01:25]} 39. Kg1 {[%emt 0:00:32]} Rd2 {[%emt 0:00:52]} 40. Qh5 {[%emt 0:00:32]} Nc2 {[%emt 0:00:21]} 41. Bf1 {[%emt 0:00:34]} Qd7 {[%emt 0:00:40]} 42. Rc1 {[%emt 0:00:29]} Qa7+ {[%emt 0:00:25]} 0-1

[Event "1st Bangalore GM-Open-A 2024"]
[Site "Bangalore"]
[Date "2024.01.24"]
[Round "8.15"]
[White "Das, Sayantan"]
[Black "Aswath, S."]
[Result "0-1"]
[ECO "B37"]
[WhiteElo "2514"]
[BlackElo "2369"]
[Annotator "RC"]
[PlyCount "66"]
[EventDate "2024.01.20"]
[EventType "swiss"]
[EventCountry "IND"]
[SourceTitle "playchess.com"]
[Source "ChessBase"]
[SourceQuality "1"]
[TimeControl "5400+30"]

1. e4 {[%emt 0:00:06]} c5 {[%emt 0:02:06]} 2. Nf3 {[%emt 0:01:12]} d6 {[%emt 0:00:09]} 3. d4 {[%emt 0:00:43]} cxd4 {[%emt 0:00:13]} 4. Nxd4 {[%emt 0:00:23]} Nf6 {[%emt 0:00:08]} 5. Bd3 {[%emt 0:00:39]} g6 {[%emt 0:02:49]} 6. c4 {[%emt 0:01:01]} Bg7 {[%emt 0:00:30]} 7. Nc3 {[%emt 0:00:48]} Nc6 {[%emt 0:01:49]} 8. Nc2 {[%emt 0:01:30]} O-O {[%emt 0:01:36]} 9. O-O {[%emt 0:00:12]} Nd7 {[%emt 0:01:41]} 10. Be3 {[%emt 0:06:07]} Nc5 {[%emt 0:00:53]} 11. Qd2 {[%emt 0:17:09]} Qa5 {[%emt 0:11:45]} 12. Rab1 {[%emt 0:16:53]} Bxc3 {[%emt 0:07:24]} 13. bxc3 {[%emt 0:00:06]} Nxd3 {[%emt 0:04:56]} 14. Qxd3 {[%emt 0:00:08]} Be6 {[%emt 0:07:40]} 15. Bh6 {[%emt 0:09:08]} Rfc8 {[%emt 0:08:00]} 16. Rb5 {[%emt 0:04:00]} Qa6 {[%emt 0:10:48]} 17. Ne3 {[%emt 0:20:27]} Ne5 {[%emt 0:01:44]} 18. Qb1 {[%emt 0:01:44]} b6 {[%emt 0:05:40]} 19. Nd5 {[%emt 0:02:16]} Bxd5 {[%emt 0:00:46]} 20. cxd5 {[%emt 0:00:07]} Rxc3 {[%emt 0:01:18]} 21. Bd2 {[%emt 0:06:06]} Rc4 {[%emt 0:00:46]} 22. Rb3 {[%emt 0:02:10]} Rac8 {[%emt 0:00:44]} 23. f4 {[%emt 0:01:57]} Nd7 {[%emt 0:00:21]} 24. f5 {[%emt 0:02:01]} Rc2 {[%emt 0:00:34]} 25. fxg6 {[%emt 0:01:28]} hxg6 {[%emt 0:00:55]} 26. Qe1 {[%emt 0:01:46]} Qc4 {[%emt 0:04:54]} 27. Bg5 {[%emt 0:02:57]} Re2 {[%emt 0:00:54]} 28. Qg3 {[%emt 0:00:40]} Qxe4 {[%emt 0:00:43]} 29. Qh3 {[%emt 0:00:19]} Rcc2 {[%emt 0:00:45]} 30. Rg3 {[%emt 0:00:09]} Re1 {[%emt 0:01:38]} 31. Rgf3 {[%emt 0:00:30]} Ne5 {[%emt 0:01:56]} 32. Rf4 {[%emt 0:00:37]} Rcc1 {[%emt 0:00:31]} 33. Qg3 {[%emt 0:01:05]} Qd4+ {[%emt 0:00:13]} 0-1

[Event "1st Bangalore GM-Open-A 2024"]
[Site "Bangalore"]
[Date "2024.01.24"]
[Round "8.16"]
[White "Savchenko, Boris"]
[Black "Liyanage, Ranindu Dilshan"]
[Result "0-1"]
[ECO "D38"]
[WhiteElo "2489"]
[BlackElo "2366"]
[Annotator "RC"]
[PlyCount "56"]
[EventDate "2024.01.20"]
[EventType "swiss"]
[EventCountry "IND"]
[SourceTitle "playchess.com"]
[Source "ChessBase"]
[SourceQuality "1"]
[TimeControl "5400+30"]

1. c4 {[%emt 0:00:07]} e6 {[%emt 0:00:49]} 2. Nc3 {[%emt 0:01:09]} d5 {[%emt 0:00:22]} 3. d4 {[%emt 0:00:14]} Nf6 {[%emt 0:00:24]} 4. Nf3 {[%emt 0:01:06]} Nbd7 {[%emt 0:00:52]} 5. Bg5 {[%emt 0:01:54]} Bb4 {[%emt 0:00:25]} 6. e3 {[%emt 0:00:20]} c5 {[%emt 0:00:44]} 7. Rc1 {[%emt 0:06:42]} Qa5 {[%emt 0:08:16]} 8. cxd5 {[%emt 0:11:33]} Nxd5 {[%emt 0:14:10]} 9. Qd2 {[%emt 0:12:29]} h6 {[%emt 0:07:41]} 10. Bh4 {[%emt 0:00:29]} O-O {[%emt 0:02:20]} 11. e4 {[%emt 0:04:20]} cxd4 {[%emt 0:05:27]} 12. Nxd4 {[%emt 0:00:48]} Nxc3 {[%emt 0:02:21]} 13. bxc3 {[%emt 0:00:13]} Ba3 {[%emt 0:03:03]} 14. Rb1 {[%emt 0:05:31]} Nc5 {[%emt 0:06:24]} 15. Rb5 {[%emt 0:19:53]} Qa4 {[%emt 0:06:19]} 16. f3 {[%emt 0:05:09]} e5 {[%emt 0:16:15]} 17. Nc2 {[%emt 0:07:46]} Nxe4 {[%emt 0:03:07]} 18. fxe4 {[%emt 0:00:49]} Qxe4+ {[%emt 0:00:06]} 19. Kd1 {[%emt 0:00:11]} Qxh4 {[%emt 0:01:05]} 20. Nxa3 {[%emt 0:00:11]} Rd8 {[%emt 0:01:52]} 21. Rd5 {[%emt 0:00:24]} Be6 {[%emt 0:01:31]} 22. c4 {[%emt 0:00:42]} Bxd5 {[%emt 0:00:37]} 23. cxd5 {[%emt 0:00:05]} Qa4+ {[%emt 0:05:42]} 24. Nc2 {[%emt 0:00:19]} Rac8 {[%emt 0:00:03]} 25. Qd3 {[%emt 0:00:05]} Rc5 {[%emt 0:02:49]} 26. Qb3 {[%emt 0:00:30]} Rdxd5+ {[%emt 0:00:28]} 27. Kc1 {[%emt 0:00:21]} Qf4+ {[%emt 0:00:15]} 28. Kb2 {[%emt 0:00:09]} Rd2 {[%emt 0:01:41]} 0-1

[Event "1st Bangalore GM-Open-A 2024"]
[Site "Bangalore"]
[Date "2024.01.24"]
[Round "8.17"]
[White "Laxman, R.R."]
[Black "Muthaiah AL"]
[Result "1/2-1/2"]
[ECO "D11"]
[WhiteElo "2338"]
[BlackElo "2464"]
[Annotator "RC"]
[PlyCount "60"]
[EventDate "2024.01.20"]
[EventType "swiss"]
[EventCountry "IND"]
[SourceTitle "playchess.com"]
[Source "ChessBase"]
[SourceQuality "1"]
[TimeControl "5400+30"]

1. d4 {[%emt 0:00:02]} d5 {[%emt 0:01:07]} 2. Nf3 {[%emt 0:00:05]} Nf6 {[%emt 0:00:23]} 3. c4 {[%emt 0:00:05]} c6 {[%emt 0:00:38]} 4. e3 {[%emt 0:00:05]} Bg4 {[%emt 0:00:28]} 5. Nbd2 {[%emt 0:01:06]} Nbd7 {[%emt 0:00:28]} 6. Be2 {[%emt 0:00:41]} e6 {[%emt 0:01:02]} 7. O-O {[%emt 0:00:30]} Bd6 {[%emt 0:01:09]} 8. b3 {[%emt 0:01:00]} Qe7 {[%emt 0:04:23]} 9. Bb2 {[%emt 0:00:28]} Ne4 {[%emt 0:01:25]} 10. Ne5 {[%emt 0:12:09]} Bxe2 {[%emt 0:20:53]} 11. Qxe2 {[%emt 0:00:05]} Nxd2 {[%emt 0:05:52]} 12. Qxd2 {[%emt 0:00:17]} Nf6 {[%emt 0:00:50]} 13. Qe2 {[%emt 0:02:19]} O-O {[%emt 0:01:33]} 14. Rfd1 {[%emt 0:04:44]} h6 {[%emt 0:05:17]} 15. g3 {[%emt 0:00:30]} Rad8 {[%emt 0:02:12]} 16. Kg2 {[%emt 0:00:26]} Nd7 {[%emt 0:03:46]} 17. Nd3 {[%emt 0:02:31]} dxc4 {[%emt 0:05:45]} 18. bxc4 {[%emt 0:00:02]} e5 {[%emt 0:00:14]} 19. dxe5 {[%emt 0:00:18]} Nxe5 {[%emt 0:00:14]} 20. Bxe5 {[%emt 0:05:15]} Bxe5 {[%emt 0:00:52]} 21. Nxe5 {[%emt 0:00:06]} Qxe5 {[%emt 0:00:13]} 22. Qc2 {[%emt 0:00:03]} Rfe8 {[%emt 0:09:14]} 23. Rab1 {[%emt 0:00:37]} b6 {[%emt 0:00:44]} 24. h4 {[%emt 0:00:45]} g6 {[%emt 0:08:41]} 25. Kg1 {[%emt 0:00:53]} h5 {[%emt 0:03:09]} 26. Qa4 {[%emt 0:00:52]} Qc7 {[%emt 0:01:38]} 27. Kg2 {[%emt 0:02:47]} Qb7 {[%emt 0:03:43]} 28. c5 {[%emt 0:01:43]} Qc7 {[%emt 0:05:44]} 29. Qb4 {[%emt 0:06:51]} Rxd1 {[%emt 0:02:27]} 30. Rxd1 {[%emt 0:00:02]} bxc5 {[%emt 0:00:48]} 1/2-1/2

[Event "1st Bangalore GM-Open-A 2024"]
[Site "Bangalore"]
[Date "2024.01.24"]
[Round "8.18"]
[White "Nguyen Van Huy"]
[Black "Fedorov, Alexei"]
[Result "1/2-1/2"]
[ECO "E91"]
[WhiteElo "2364"]
[BlackElo "2457"]
[Annotator "TA"]
[PlyCount "43"]
[EventDate "2024.01.20"]
[EventType "swiss"]
[EventCountry "IND"]
[SourceTitle "playchess.com"]
[Source "ChessBase"]
[SourceQuality "1"]
[TimeControl "5400+30"]

{[%evp 17,43,52,53,41,52,41,51,51,45,42,49,42,38,38,38,38,38,38,48,50,45,38,39,0,47,0,42,0]} 1. d4 {[%emt 0:00:34] Krasenkow,Michal} Nf6 {[%emt 0:00:06]} 2. c4 {[%emt 0:00:26]} g6 {[%emt 0:00:07]} 3. Nc3 {[%emt 0:00:27]} Bg7 {[%emt 0:00:06]} 4. e4 {[%emt 0:00:22]} d6 {[%emt 0:00:06]} 5. Nf3 {[%emt 0:00:49]} O-O {[%emt 0:00:32]} 6. Be2 {[%emt 0:00:18]} Bg4 {[%emt 0:00:52]} 7. Be3 {[%emt 0:01:36]} Nfd7 {[%emt 0:00:46]} 8. Rc1 {[%emt 0:00:59]} e5 {[%emt 0:01:15]} 9. d5 {[%emt 0:01:35]} a5 {[%emt 0:00:43]} 10. h3 {[%emt 0:02:30] E91: King's Indian: Classical: 6 Be2, unusual replies including 6...c5 and 6...Bg4.} Bxf3 {[%emt 0:00:12]} 11. Bxf3 {[%emt 0:00:10]} f5 {[%emt 0:04:29]} 12. h4 {[%emt 0:04:33]} f4 {[%emt 0:00:09]} 13. Bd2 {[%emt 0:00:31]} Nc5 {[%emt 0:00:04]} 14. Qe2 {[%emt 0:06:17] Repels Nd3+} h5 {[%emt 0:00:13]} 15. g4 {[%emt 0:02:42]} fxg3 {[%emt 0:00:45]} 16. fxg3 {[%emt 0:00:13] Threatens to win with Bg5.} Nba6 {[%emt 0:00:23]} 17. O-O {[%emt 0:02:34] [#]} Qe7 $146 {[%emt 0:04:17]} ({Predecessor:} 17... Qd7 18. g4 Nb4 19. gxh5 Nbd3 20. hxg6 Nxc1 21. Bxc1 Qh3 22. h5 Nd3 23. Qg2 Qxg2+ 24. Kxg2 {0-1 Steingrimsson,H (2573)-Kovalenko,I (2646) Olympiad-43 Batumi 2018 (2.28)}) 18. Bg5 {[%emt 0:06:31]} Bf6 {[%emt 0:00:11]} 19. Bh6 {[%emt 0:00:24]} Bg7 {[%emt 0:00:12]} 20. Bg5 {[%emt 0:00:09]} Bf6 {[%emt 0:00:05]} 21. Bh6 {[%emt 0:00:09]} Bg7 {[%emt 0:00:05]} 22. Bg5 {[%emt 0:00:07] Weighted Error Value: White=0.11 (very precise) /Black=0.01 (flawless)} 1/2-1/2

[Event "1st Bangalore GM-Open-A 2024"]
[Site "Bangalore"]
[Date "2024.01.24"]
[Round "8.19"]
[White "Jain Kashish Manoj"]
[Black "Shyaamnikhil P"]
[Result "0-1"]
[ECO "B90"]
[WhiteElo "2334"]
[BlackElo "2443"]
[Annotator "RC"]
[PlyCount "100"]
[EventDate "2024.01.20"]
[EventType "swiss"]
[EventCountry "IND"]
[SourceTitle "playchess.com"]
[Source "ChessBase"]
[SourceQuality "1"]
[TimeControl "5400+30"]

1. e4 {[%emt 0:00:18]} c5 {[%emt 0:00:05]} 2. Nf3 {[%emt 0:00:05]} d6 {[%emt 0:00:03]} 3. d4 {[%emt 0:00:04]} cxd4 {[%emt 0:00:04]} 4. Nxd4 {[%emt 0:00:03]} Nf6 {[%emt 0:00:26]} 5. Nc3 {[%emt 0:00:06]} a6 {[%emt 0:00:03]} 6. Be3 {[%emt 0:00:06]} Ng4 {[%emt 0:01:47]} 7. Bg5 {[%emt 0:03:01]} h6 {[%emt 0:00:06]} 8. Bh4 {[%emt 0:00:03]} g5 {[%emt 0:00:04]} 9. Bg3 {[%emt 0:00:06]} Bg7 {[%emt 0:00:06]} 10. h3 {[%emt 0:00:05]} Ne5 {[%emt 0:02:10]} 11. Nf5 {[%emt 0:00:24]} Bxf5 {[%emt 0:00:59]} 12. exf5 {[%emt 0:00:03]} Nbd7 {[%emt 0:01:13]} 13. Be2 {[%emt 0:12:22]} Rc8 {[%emt 0:01:11]} 14. O-O {[%emt 0:02:24]} O-O {[%emt 0:03:26]} 15. Nd5 {[%emt 0:12:59]} e6 {[%emt 0:08:22]} 16. Ne3 {[%emt 0:00:35]} Qb6 {[%emt 0:00:08]} 17. c3 {[%emt 0:30:30]} Qxb2 {[%emt 0:09:44]} 18. fxe6 {[%emt 0:10:26]} fxe6 {[%emt 0:00:34]} 19. Bg4 {[%emt 0:10:11]} Rfe8 {[%emt 0:09:30]} 20. Qxd6 {[%emt 0:07:45]} Rc6 {[%emt 0:01:31]} 21. Qd1 {[%emt 0:00:03]} Qxc3 {[%emt 0:01:21]} 22. Bh5 {[%emt 0:02:25]} Rf8 {[%emt 0:07:34]} 23. Rc1 {[%emt 0:01:38]} Qxc1 {[%emt 0:05:15]} 24. Qxc1 {[%emt 0:00:02]} Rxc1 {[%emt 0:00:09]} 25. Rxc1 {[%emt 0:00:02]} Nf6 {[%emt 0:09:26]} 26. Bd1 {[%emt 0:07:08]} Nc6 {[%emt 0:02:59]} 27. Bf3 {[%emt 0:00:33]} Nd4 {[%emt 0:00:08]} 28. Rc7 {[%emt 0:00:28]} Nxf3+ {[%emt 0:00:23]} 29. gxf3 {[%emt 0:00:02]} Rf7 {[%emt 0:02:59]} 30. Rc8+ {[%emt 0:00:34]} Kh7 {[%emt 0:00:07]} 31. Nc4 {[%emt 0:00:05]} Nh5 {[%emt 0:00:05]} 32. Kg2 {[%emt 0:01:13]} Nxg3 {[%emt 0:01:42]} 33. fxg3 {[%emt 0:00:27]} Rd7 {[%emt 0:00:05]} 34. a4 {[%emt 0:00:39]} b5 {[%emt 0:00:18]} 35. axb5 {[%emt 0:00:04]} axb5 {[%emt 0:00:04]} 36. Na5 {[%emt 0:00:58]} Rd2+ {[%emt 0:00:45]} 37. Kf1 {[%emt 0:00:07]} Be5 {[%emt 0:03:27]} 38. g4 {[%emt 0:00:52]} Kg7 {[%emt 0:04:31]} 39. Rc5 {[%emt 0:00:31]} Rd5 {[%emt 0:00:05]} 40. Rc6 {[%emt 0:00:31]} Kf6 {[%emt 0:00:36]} 41. Nb3 {[%emt 0:00:32]} Rd6 {[%emt 0:00:43]} 42. Rc5 {[%emt 0:00:28]} Rd3 {[%emt 0:03:03]} 43. Rxb5 {[%emt 0:00:02]} Rxf3+ {[%emt 0:00:06]} 44. Ke2 {[%emt 0:00:03]} Rxh3 {[%emt 0:00:06]} 45. Nc5 {[%emt 0:00:01]} Bd4 {[%emt 0:00:28]} 46. Ne4+ {[%emt 0:00:02]} Kg6 {[%emt 0:00:07]} 47. Nd2 {[%emt 0:01:45]} Re3+ {[%emt 0:00:38]} 48. Kf1 {[%emt 0:01:01]} Rg3 {[%emt 0:00:07]} 49. Rb4 {[%emt 0:00:13]} Rxg4 {[%emt 0:00:53]} 50. Nf3 {[%emt 0:00:21]} Rf4 {[%emt 0:00:05]} 0-1